bitfinex/quotes_ETHUSD_20251218
["timestamp","ask_amount","ask_price","bid_price","bid_amount"]
[1766065094762,0.405504,2911.5,2909.8,0.183]
[1766065094763,2.4976,2911.0,2909.8,0.46438023]
[1766065095065,0.612,2910.9,2909.9,0.001]
[1766065095443,0.612,2911.1,2910.1,0.46438023]
[1766065095649,0.612,2911.0,2909.9,3.99054545]
[1766065095845,8.5482,2911.8,2910.1,0.27262427]
[1766065096159,6.0506,2911.3,2910.2,0.65417575]
[1766065096355,0.612,2911.2,2909.9,0.5540045]
[1766065096667,0.46438023,2911.2,2909.7,0.5540045]
[1766065096853,0.08962427,2912.3,2909.7,0.46438023]
[1766065096854,6.0506,2911.4,2909.7,0.46438023]
[1766065097177,0.46438023,2910.9,2909.6,3.43689854]
[1766065097469,6.0506,2910.7,2909.7,0.70569028]
[1766065097631,6.0506,2910.7,2909.3,0.08962427]
[1766065097632,8.5482,2910.5,2909.4,3.43702079]
[1766065097837,0.08962427,2911.9,2909.3,0.08962427]
[1766065097838,6.0506,2910.9,2909.5,3.43701666]
[1766065098135,2.4976,2910.7,2909.6,0.46438023]
[1766065098463,8.5482,2910.5,2909.3,0.08962427]
[1766065098635,8.5482,2910.3,2909.1,0.001]
[1766065098835,9.1602,2910.2,2909.1,0.001]
[1766065099035,0.612,2910.1,2909.1,0.36316968]
[1766065099238,8.5482,2909.9,2909.1,0.001]
[1766065099870,8.5482,2909.8,2909.1,0.001]
[1766065100368,0.612,2910.1,2909.2,3.43736213]
[1766065100570,0.612,2910.1,2909.3,3.43721562]
[1766065101066,0.612,2910.1,2909.2,0.46438023]
[1766065101067,2.4976,2910.0,2909.2,0.46438023]
[1766065101240,8.5482,2909.9,2909.1,0.001]
[1766065101435,8.5482,2909.9,2909.1,0.46538023]
[1766065101857,8.5482,2909.9,2909.1,3.90286657]
[1766065102036,8.5482,2909.9,2909.1,0.001]
[1766065102570,8.5482,2909.9,2908.7,0.001]
[1766065102571,6.0506,2909.7,2908.7,0.001]
[1766065102877,8.5482,2909.3,2908.7,0.001]
[1766065103040,0.612,2909.2,2908.7,0.001]
[1766065103395,8.5482,2909.9,2908.7,0.09062427]
[1766065103590,0.612,2909.8,2908.7,0.84729864]
[1766065103802,6.0506,2909.5,2908.7,0.84729864]
[1766065103968,6.0506,2909.5,2908.7,0.09062427]
[1766065104290,6.0506,2910.0,2908.8,0.10689725]
[1766065104476,6.0506,2910.0,2909.1,0.08962427]
[1766065104477,0.612,2910.0,2909.1,0.08962427]
[1766065104877,6.51498023,2910.3,2909.1,0.08962427]
[1766065104878,0.612,2909.9,2909.1,6.96460092]
[1766065105194,0.612,2910.2,2909.5,0.08962427]
[1766065105372,2.4976,2910.0,2909.1,3.52708089]
[1766065105571,0.612,2910.2,2909.2,0.46438023]
[1766065106091,6.0506,2910.8,2909.6,0.08962427]
[1766065106259,0.612,2910.7,2909.8,0.08962427]
[1766065106459,8.5482,2911.0,2910.0,0.08962427]
[1766065106883,8.5482,2911.4,2910.0,3.54321173]
[1766065107084,8.5482,2911.4,2909.8,0.08962427]
[1766065107085,2.4976,2910.8,2909.6,0.08962427]
[1766065107285,0.612,2910.9,2910.0,3.43640827]
[1766065107484,0.612,2910.9,2910.0,3.52603254]
[1766065108066,0.612,2910.9,2910.0,0.08962427]
[1766065108267,6.0506,2910.7,2909.6,0.08962427]
[1766065108491,0.08962427,2912.3,2909.8,0.08962427]
[1766065108492,0.46438023,2911.9,2909.8,0.08962427]
[1766065108661,6.0506,2911.2,2909.9,0.184]
[1766065108995,8.5482,2911.0,2909.9,3.80756417]
[1766065109159,0.04293762,2911.2,2909.9,3.80756417]
[1766065109160,0.611,2910.9,2910.0,0.08962427]
[1766065109792,0.611,2910.9,2910.0,0.09062427]
[1766065109992,0.405504,2911.5,2910.0,0.09062427]
[1766065109993,6.0506,2911.7,2910.2,0.08962427]
[1766065110192,6.0506,2911.7,2910.4,0.27362427]
[1766065110493,6.0506,2913.0,2910.8,0.27362427]
[1766065110688,6.86530274,2913.2,2910.8,0.27362427]
[1766065110689,0.46438023,2912.5,2910.8,0.27362427]
[1766065110889,0.46438023,2912.1,2910.8,3.7090509]
[1766065111080,6.0506,2912.1,2911.1,0.08962427]
[1766065111281,0.611,2912.4,2911.1,0.08962427]
[1766065111683,0.611,2912.3,2911.5,0.08962427]
[1766065111996,6.0506,2911.9,2911.1,0.08962427]
[1766065112201,6.0498,2911.9,2911.1,0.08962427]
[1766065112566,2.4976,2912.0,2911.1,3.52467896]
[1766065112764,2.4976,2912.4,2911.3,0.08962427]
[1766065112986,0.611,2912.3,2911.3,0.08962427]
[1766065113289,0.611,2912.2,2911.3,0.08962427]
[1766065113662,0.611,2912.2,2911.2,0.46438023]
[1766065113663,2.4976,2912.1,2910.8,0.08962427]
[1766065113859,2.96198023,2913.2,2911.2,0.08962427]
[1766065114092,2.96198023,2913.2,2911.3,0.35247269]
[1766065114093,0.86988423,2912.6,2911.3,0.35247269]
[1766065114390,0.405504,2912.4,2911.3,0.35247269]
[1766065114893,0.86988423,2912.4,2911.3,0.35247269]
[1766065115073,8.953704,2912.4,2911.4,0.08962427]
[1766065115394,0.611,2912.3,2911.5,0.01719093]
[1766065115572,0.611,2912.3,2911.4,0.08962427]
[1766065115892,0.46438023,2912.7,2911.6,0.08962427]
[1766065116076,0.611,2912.6,2911.6,0.08962427]
[1766065116271,0.29619802,2913.1,2911.8,0.27362427]
[1766065116482,0.611,2913.0,2911.8,0.27362427]
[1766065116789,0.46438023,2912.9,2911.8,0.08962427]
[1766065116990,8.5482,2912.8,2911.8,0.08962427]
[1766065117195,0.611,2912.7,2911.8,0.08962427]
[1766065117363,0.002,2912.4,2911.8,0.08962427]
[1766065117875,0.611,2912.7,2911.8,0.08962427]
[1766065118406,2.4976,2914.4,2912.4,0.08962427]
[1766065118598,0.46438023,2913.7,2912.6,0.08962427]
[1766065118772,8.5482,2913.8,2912.9,0.08962427]
[1766065118964,6.0506,2913.6,2912.6,0.08962427]
[1766065119164,6.0506,2913.6,2912.4,0.27362427]
[1766065119368,6.0506,2913.6,2912.2,0.08962427]
[1766065119369,6.0506,2913.3,2912.2,0.08962427]
[1766065119602,0.61,2913.2,2912.2,0.08962427]
[1766065119785,0.61,2913.2,2911.6,0.08962427]
[1766065119786,8.5482,2913.0,2911.6,0.08962427]
[1766065120102,0.61,2912.9,2911.9,0.5540045]
[1766065120298,0.61,2912.8,2911.9,0.5540045]
[1766065120473,0.61,2912.8,2911.9,0.08962427]
[1766065120804,0.61,2912.8,2912.0,0.46438023]
[1766065121004,8.5482,2913.0,2911.9,0.08962427]
[1766065121005,8.5482,2913.0,2911.9,0.5540045]
[1766065121301,0.405504,2913.5,2912.2,0.184]
[1766065121471,0.61,2913.2,2912.3,0.08962427]
[1766065121670,4.69119871,2913.6,2912.4,0.01716558]
[1766065121870,0.61,2913.5,2912.3,0.08962427]
[1766065122095,9.01258023,2913.3,2912.3,0.08962427]
[1766065122284,9.01258023,2913.3,2912.1,0.08962427]
[1766065122285,0.46438023,2913.3,2912.1,0.10679044]
[1766065122597,4.69119871,2913.6,2912.3,0.08962427]
[1766065122598,0.46438023,2913.4,2912.3,0.08962427]
[1766065122806,0.46438023,2913.4,2912.4,0.184]
[1766065122962,11.98036322,2913.7,2912.4,0.184]
[1766065122963,8.5482,2913.7,2912.6,0.08962427]
[1766065123168,8.5482,2913.7,2912.6,0.5540045]
[1766065123400,8.5482,2913.7,2912.6,0.08962427]
[1766065123565,2.3704,2913.3,2912.1,0.08962427]
[1766065123770,8.1688,2912.9,2911.9,0.08962427]
[1766065124108,0.61,2913.2,2912.1,0.08962427]
[1766065124278,0.46438023,2913.6,2912.4,0.184]
[1766065124480,3.4312996,2914.4,2912.4,0.184]
[1766065124481,8.1688,2913.8,2912.9,0.08962427]
[1766065124692,3.43070781,2914.9,2912.9,0.08962427]
[1766065124893,0.46438023,2913.8,2912.9,0.08962427]
[1766065125405,5.80142734,2914.6,2913.1,0.08962427]
[1766065125607,8.7788,2914.5,2913.1,0.1067598]
[1766065125798,8.1708,2914.5,2913.5,0.08962427]
[1766065125967,0.002,2914.5,2913.5,0.08962427]
[1766065126274,0.002,2914.5,2913.7,0.08962427]
[1766065126471,0.002,2914.5,2913.1,0.08962427]
[1766065126472,0.002,2914.5,2913.0,0.48150987]
[1766065126670,8.1688,2914.3,2913.0,0.5540045]
[1766065126870,8.1688,2914.3,2913.1,3.43276921]
[1766065127079,8.1688,2914.3,2913.2,0.08962427]
[1766065127305,5.7984,2914.3,2913.2,0.08962427]
[1766065127479,1.07338023,2914.4,2913.3,0.01713671]
[1766065127684,5.7984,2914.1,2913.2,0.08962427]
[1766065127909,2.3704,2914.2,2913.2,0.08962427]
[1766065128112,1.07338023,2914.4,2913.2,0.08962427]
[1766065128407,1.07338023,2914.4,2913.2,0.10676039]
[1766065128868,4.50466629,2914.4,2913.2,0.01713612]
[1766065129073,6.203904,2913.8,2911.8,3.43423563]
[1766065129299,2.83478023,2913.3,2912.1,0.08962427]
[1766065129498,8.1688,2913.1,2912.1,0.08962427]
[1766065129734,8.1688,2913.1,2912.1,3.52354395]
[1766065129890,3.627,2914.5,2912.3,0.08962427]
[1766065129891,0.46438023,2914.3,2912.3,0.08962427]
[1766065130214,0.46438023,2913.6,2912.6,0.08962427]
[1766065130415,1.07338023,2913.6,2912.6,0.08962427]
[1766065131119,2.83478023,2914.3,2912.8,0.08962427]
[1766065131324,5.7984,2914.2,2913.1,0.08962427]
[1766065131824,0.609,2914.4,2913.4,0.08962427]
[1766065131985,0.611,2914.5,2913.2,0.184]
[1766065132190,0.46438023,2914.3,2913.3,0.08962427]
[1766065132790,0.46438023,2914.4,2913.3,0.08962427]
[1766065133017,0.611,2914.5,2913.3,0.27362427]
[1766065133178,5.7984,2914.2,2913.3,0.08962427]
[1766065134084,0.46438023,2914.4,2913.3,0.08962427]
[1766065134311,2.3704,2914.1,2913.1,0.08962427]
[1766065134520,6.26278023,2913.7,2912.8,0.08962427]
[1766065134748,5.7984,2914.1,2913.0,0.08962427]
[1766065134886,1.07338023,2914.0,2913.2,0.08962427]
[1766065135414,5.7984,2913.8,2912.8,0.08962427]
[1766065135613,8.1688,2913.8,2912.8,0.08962427]
[1766065137018,0.46438023,2913.7,2912.8,0.08962427]
[1766065137202,0.46438023,2913.7,2912.3,0.69862427]
[1766065137203,2.83478023,2913.5,2912.3,0.69862427]
[1766065137520,2.83478023,2913.5,2911.9,0.27362427]
[1766065137726,2.83478023,2913.3,2912.0,3.43399577]
[1766065138027,2.9784,2913.2,2912.0,3.43399577]
[1766065138196,2.3704,2913.1,2911.9,0.08962427]
[1766065138398,2.3704,2913.1,2911.9,3.52372477]
[1766065138729,2.3704,2913.1,2911.9,3.52377118]
[1766065139082,2.3704,2913.1,2911.9,0.08962427]
[1766065139288,0.50729131,2913.0,2911.3,0.001]
[1766065139496,0.608,2912.9,2912.0,3.43404111]
[1766065139786,0.608,2912.9,2911.9,3.43412024]
[1766065139991,0.46438023,2913.1,2911.7,0.184]
[1766065140309,0.46438023,2912.9,2911.7,0.184]
[1766065140486,0.46438023,2912.9,2912.0,3.43404371]
[1766065140689,0.608,2913.2,2911.9,0.184]
[1766065140911,5.2956,2912.6,2911.3,0.001]
[1766065141111,2.3776,2911.8,2911.3,0.001]
[1766065141415,5.75998023,2911.4,2910.3,0.608]
[1766065141595,6.36798023,2911.4,2910.3,0.608]
[1766065141988,2.3776,2912.1,2910.5,0.184]
[1766065142189,5.2956,2911.3,2910.3,0.608]
[1766065142488,5.2956,2911.3,2910.1,0.001]
[1766065142489,5.2956,2911.0,2910.1,0.001]
[1766065142915,5.2956,2911.6,2910.2,0.184]
[1766065143219,11.10797364,2911.4,2910.1,0.001]
[1766065143407,1.07238023,2911.5,2910.1,0.001]
[1766065143408,0.608,2911.3,2910.2,3.62018237]
[1766065143609,0.608,2911.3,2910.3,0.36211824]
[1766065143795,0.46438023,2911.7,2910.4,0.184]
[1766065143796,0.608,2911.4,2910.4,0.184]
[1766065143996,0.608,2911.4,2911.3,0.001]
[1766065144196,7.6732,2911.8,2911.3,0.001]
[1766065144397,1.07238023,2911.7,2910.4,0.184]
[1766065144601,1.07238023,2911.7,2910.4,0.99561148]
[1766065144830,6.86553842,2913.1,2910.8,0.08962427]
[1766065145029,6.86624552,2912.8,2910.9,3.61926588]
[1766065145254,5.9036,2912.7,2911.2,0.184]
[1766065145442,0.46438023,2912.4,2911.2,0.184]
[1766065145818,7.6732,2913.1,2911.5,8.37094574]
[1766065146057,7.6732,2913.1,2911.8,0.184]
[1766065146354,5.2956,2913.1,2911.9,0.08962427]
[1766065146649,1.07238023,2913.0,2911.9,0.27362427]
[1766065146855,0.608,2913.0,2911.9,0.27362427]
[1766065147053,2.3776,2913.5,2911.9,3.52378346]
[1766065147231,0.608,2913.0,2912.0,0.53637835]
[1766065147922,0.002,2913.2,2912.1,0.184]
[1766065148122,0.46438023,2913.1,2911.9,0.08962427]
[1766065148327,5.75998023,2913.0,2911.9,0.08962427]
[1766065148530,0.607,2912.9,2911.9,0.27362427]
[1766065148756,0.002,2913.2,2912.3,0.08962427]
[1766065148968,0.002,2913.2,2912.3,0.27362427]
[1766065149133,0.002,2913.2,2912.3,3.70726345]
[1766065149338,0.46438023,2913.5,2912.3,7.14097563]
[1766065149663,0.46438023,2913.5,2912.4,0.182]
[1766065149962,0.46438023,2913.4,2912.4,0.4312416]
[1766065150152,0.46438023,2913.4,2912.3,3.52332564]
[1766065150754,2.3776,2913.6,2912.3,6.95703782]
[1766065150961,0.607,2913.7,2912.4,0.182]
[1766065151274,0.607,2913.7,2912.4,3.61557886]
[1766065151569,5.2956,2913.5,2912.3,0.08962427]
[1766065151751,5.2956,2913.2,2912.2,0.607]
[1766065151954,2.84198023,2913.1,2912.1,0.08962427]
[1766065152146,0.46438023,2913.1,2912.1,0.08962427]
[1766065152553,0.607,2913.4,2912.2,0.182]
[1766065152753,0.46438023,2913.3,2912.1,3.52355042]
[1766065152952,0.46438023,2913.2,2912.2,0.35235504]
[1766065153153,0.46438023,2913.2,2912.2,3.78617955]
[1766065153473,0.46438023,2913.2,2912.3,0.182]
[1766065153474,0.002,2913.2,2912.3,0.182]
[1766065154678,0.46438023,2913.6,2912.3,0.69662427]
[1766065154845,0.607,2913.8,2912.6,0.182]
[1766065155180,5.89378023,2913.5,2912.5,0.08962427]
[1766065155376,0.46438023,2913.7,2912.5,3.52309375]
[1766065155548,0.607,2913.7,2912.6,0.182]
[1766065155948,2.94928023,2913.8,2912.6,0.182]
[1766065156271,2.94928023,2913.8,2912.7,0.37050938]
[1766065156887,5.4294,2913.7,2912.5,0.08962427]
[1766065157175,5.4294,2913.6,2912.4,0.44828038]
[1766065157351,7.9143,2913.6,2912.4,0.44828038]
[1766065157679,11.34650127,2913.6,2912.4,0.44828038]
[1766065157978,2.94928023,2914.0,2912.5,0.182]
[1766065158176,6.38099925,2914.0,2912.6,0.74974614]
[1766065158483,0.606,2913.9,2912.6,0.74974614]
[1766065158678,0.46438023,2913.8,2912.6,0.74974614]
[1766065158846,8.37868023,2913.8,2912.6,0.74974614]
[1766065159252,8.98468023,2913.8,2912.6,0.74974614]
[1766065159478,0.46638023,2914.3,2912.7,7.62027125]
[1766065159681,0.002,2914.3,2912.9,0.08962427]
[1766065159891,0.46438023,2914.2,2913.0,0.606]
[1766065160093,7.9163,2914.3,2913.5,0.08962427]
[1766065160094,0.002,2914.3,2913.5,0.08962427]
[1766065160276,0.002,2914.3,2913.6,0.606]
[1766065160795,2.4869,2914.8,2913.8,0.08962427]
[1766065160796,0.002,2914.8,2913.8,0.08962427]
[1766065161260,0.002,2914.8,2913.8,3.52156677]
[1766065161463,0.0012,2914.8,2913.9,0.35215668]
[1766065161665,0.606,2915.5,2914.0,0.08962427]
[1766065162090,0.606,2915.5,2914.1,0.606]
[1766065162394,0.46438023,2915.4,2914.2,0.08962427]
[1766065162596,0.405504,2915.4,2914.2,0.08962427]
[1766065162893,12.29096006,2915.7,2914.2,0.08962427]
[1766065163095,11.3460767,2915.7,2914.2,0.08962427]
[1766065163293,0.002,2915.4,2914.3,3.43135572]
[1766065163499,0.002,2915.4,2914.4,0.69524079]
[1766065164012,7.9163,2915.7,2914.4,0.69524079]
[1766065164013,0.002,2915.7,2914.4,0.78486506]
[1766065164311,2.4849,2915.7,2914.8,0.08962427]
[1766065164469,5.4294,2915.7,2914.8,0.08962427]
[1766065164664,0.002,2916.2,2914.7,0.605]
[1766065164665,2.4849,2915.8,2914.7,0.605]
[1766065164895,5.4294,2915.7,2914.5,0.605]
[1766065165096,0.605,2915.9,2914.5,0.605]
[1766065165306,0.46638023,2916.2,2914.8,0.08962427]
[1766065165507,0.002,2916.2,2914.8,3.52038009]
[1766065165690,0.46638023,2916.2,2914.9,0.69512568]
[1766065165897,0.002,2916.2,2915.0,0.69462427]
[1766065166367,6.8602691,2916.2,2915.0,0.605]
[1766065166569,5.4294,2915.8,2915.0,0.605]
[1766065166875,2.4849,2915.9,2915.0,0.605]
[1766065167173,1.06938023,2916.1,2915.0,0.605]
[1766065167605,0.002,2916.2,2915.3,8.26979476]
[1766065167776,5.4294,2916.8,2915.3,8.26979476]
[1766065167777,5.4294,2917.3,2915.8,0.46438023]
[1766065168109,5.4294,2917.3,2915.9,0.605]
[1766065168608,3.42995909,2917.2,2915.9,0.605]
[1766065168823,6.85791818,2917.2,2915.9,0.605]
[1766065169111,3.42995909,2917.2,2915.9,0.605]
[1766065169310,7.9143,2917.1,2915.9,0.605]
[1766065169674,0.46438023,2917.0,2915.9,0.605]
[1766065169882,7.9143,2917.1,2915.9,0.605]
[1766065170220,0.002,2917.2,2916.0,0.08962427]
[1766065170510,0.002,2917.2,2916.0,0.5540045]
[1766065170716,0.002,2917.2,2916.1,8.26979476]
[1766065170881,0.002,2917.4,2916.2,0.5540045]
[1766065171075,0.002,2917.3,2916.4,0.08962427]
[1766065171408,1.625,2917.9,2916.7,3.42853224]
[1766065171709,1.625,2917.9,2916.8,0.5540045]
[1766065171897,1.625,2917.9,2916.8,1.30407382]
[1766065172294,1.625,2917.9,2916.8,0.5540045]
[1766065172500,1.625,2917.9,2916.8,0.08962427]
[1766065172696,2.4849,2917.7,2916.5,0.604]
[1766065172910,7.9143,2917.4,2916.5,0.604]
[1766065173111,0.86988423,2917.8,2916.5,0.604]
[1766065173405,12.33699992,2917.7,2916.5,0.604]
[1766065174614,2.229,2917.9,2916.5,0.604]
[1766065174615,1.625,2917.9,2916.6,0.08962427]
[1766065174819,0.46438023,2917.8,2916.6,0.08962427]
[1766065175041,1.625,2917.9,2916.6,0.5540045]
[1766065175553,2.08938023,2917.9,2916.6,3.98259872]
[1766065175719,1.625,2917.9,2916.7,1.28563935]
[1766065175915,5.05213604,2917.9,2916.7,1.28563935]
[1766065176229,5.4294,2917.4,2916.5,0.604]
[1766065176632,7.9143,2917.4,2916.5,0.604]
[1766065177124,0.604,2917.7,2916.5,0.604]
[1766065177430,1.625,2917.9,2916.7,0.08962427]
[1766065177648,1.625,2917.9,2916.7,0.5540045]
[1766065177850,5.05212423,2917.9,2916.7,0.08962427]
[1766065178144,2.98203675,2917.9,2916.7,0.08962427]
[1766065178323,1.625,2917.9,2916.7,3.51815651]
[1766065178536,1.625,2917.9,2916.9,0.08962427]
[1766065178743,0.002,2917.8,2916.9,0.08962427]
[1766065178954,1.625,2917.9,2916.9,0.08962427]
[1766065179430,5.05212851,2917.9,2916.9,0.08962427]
[1766065179634,7.0544,2917.9,2916.9,0.08962427]
[1766065179847,1.625,2917.9,2917.0,0.46438023]
[1766065180029,1.625,2917.9,2916.9,3.92508586]
[1766065180444,1.625,2917.9,2916.9,7.35338302]
[1766065180836,1.625,2917.9,2916.9,3.92508586]
[1766065181356,5.4294,2917.8,2916.7,0.08962427]
[1766065181724,4.1099,2917.9,2916.7,0.08962427]
[1766065181725,4.1099,2917.9,2916.8,0.46438023]
[1766065182277,1.625,2917.9,2916.8,0.46438023]
[1766065182472,0.002,2918.5,2917.1,0.08962427]
[1766065182473,3.42845056,2918.5,2917.1,0.08962427]
[1766065182673,1.45205127,2918.5,2917.2,0.603]
[1766065183166,0.002,2918.5,2917.5,0.08962427]
[1766065183471,0.002,2919.0,2917.7,0.08962427]
[1766065183635,5.1154,2918.9,2917.8,0.603]
[1766065184769,2.5324,2919.0,2917.8,0.603]
[1766065184770,0.002,2919.0,2918.1,0.08962427]
[1766065184967,7.6458,2918.6,2917.8,0.603]
[1766065185271,5.1154,2918.5,2917.8,0.603]
[1766065185648,3.29498,2918.6,2917.8,0.603]
[1766065185649,0.002,2919.0,2917.8,4.03022168]
[1766065185852,0.002,2919.0,2917.9,0.08962427]
[1766065186058,0.002,2919.0,2917.8,4.0302397]
[1766065186059,5.1174,2919.0,2917.8,0.603]
[1766065186369,0.602,2919.5,2918.1,0.08962427]
[1766065186370,2.5304,2919.5,2918.1,0.08962427]
[1766065186680,13.69863012,2920.0,2918.1,0.08962427]
[1766065186681,7.6458,2919.9,2918.1,0.5540045]
[1766065186878,5.1154,2919.4,2918.1,0.08962427]
[1766065187378,0.002,2918.5,2918.3,0.08962427]
[1766065187572,12.76734505,2919.8,2918.5,0.46438023]
[1766065187783,5.1154,2919.7,2918.4,0.602]
[1766065188079,5.1154,2919.6,2918.4,0.602]
[1766065188288,5.1154,2919.6,2916.9,3.51781593]
[1766065188289,5.1154,2919.0,2916.9,3.51781593]
[1766065188574,5.1154,2918.6,2917.3,0.69162427]
[1766065188881,0.57622126,2919.5,2918.0,0.5540045]
[1766065188882,7.6458,2919.4,2918.0,0.5540045]
[1766065189037,7.6458,2919.2,2918.1,0.602]
[1766065189443,0.602,2919.4,2918.2,0.08962427]
[1766065189671,7.6478,2919.7,2918.2,3.51632262]
[1766065189872,5.88018,2919.6,2918.4,0.08962427]
[1766065190089,2.5324,2919.7,2918.4,0.08962427]
[1766065190259,9.38254328,2919.7,2918.4,0.08962427]
[1766065190454,2.5304,2919.3,2918.1,0.602]
[1766065190754,5.1154,2919.0,2918.1,0.602]
[1766065190988,5.1154,2918.7,2917.5,0.08962427]
[1766065191190,5.1154,2918.7,2917.7,0.08962427]
[1766065191390,5.1154,2918.7,2917.3,0.08962427]
[1766065191391,7.6458,2918.4,2917.3,0.08962427]
[1766065191565,2.5304,2918.2,2916.8,0.08962427]
[1766065191766,11.07262561,2918.2,2916.9,0.08962427]
[1766065191994,7.6458,2917.9,2916.7,4.28596727]
[1766065192198,0.601,2918.2,2916.9,0.08962427]
[1766065192495,4.02778297,2918.2,2916.9,0.08962427]
[1766065192678,9.14318297,2918.2,2916.9,0.08962427]
[1766065192872,9.14318297,2918.2,2916.9,0.5540045]
[1766065192873,8.2468,2918.2,2916.9,0.5540045]
[1766065193092,13.18358165,2918.2,2916.9,0.5540045]
[1766065193801,1.51000557,2918.2,2917.1,0.08962427]
[1766065194007,2.5304,2918.2,2917.1,0.08962427]
[1766065194296,5.7164,2918.3,2916.9,3.51790432]
[1766065194297,5.1154,2917.9,2916.9,0.08962427]
[1766065194498,2.5304,2918.2,2916.7,0.08962427]
[1766065194693,0.601,2918.1,2916.9,0.08962427]
[1766065195191,2.5324,2918.2,2916.9,0.08962427]
[1766065195389,8.2468,2918.1,2916.9,0.08962427]
[1766065195590,5.1154,2917.7,2916.4,0.08962427]
[1766065195790,5.1154,2917.7,2916.6,0.08962427]
[1766065195991,3.1314,2917.8,2916.6,0.08962427]
[1766065196195,5.1154,2918.0,2916.8,0.08962427]
[1766065196392,0.601,2917.9,2916.8,0.08962427]
[1766065196594,5.1154,2917.6,2916.8,0.08962427]
[1766065196790,5.7164,2918.1,2916.8,0.08962427]
[1766065196985,5.7164,2918.1,2916.6,0.08962427]
[1766065196986,7.6458,2917.8,2916.7,0.601]
[1766065197306,7.6458,2917.8,2916.5,0.001]
[1766065197307,0.601,2917.7,2916.5,0.09062427]
[1766065197505,7.6458,2917.6,2916.5,0.09062427]
[1766065197707,3.4277096,2917.4,2916.5,0.09062427]
[1766065197885,5.1154,2916.9,2915.4,0.82897948]
[1766065198090,6.8554192,2917.4,2915.4,0.001]
[1766065198091,10.2831288,2917.4,2915.4,0.001]
[1766065198405,2.5304,2916.8,2915.6,0.5540045]
[1766065198606,3.1314,2916.8,2915.6,0.09062427]
[1766065198808,3.1314,2916.8,2915.6,3.52037843]
[1766065198984,8.2468,2916.8,2915.7,0.81641807]
[1766065199180,7.6458,2916.8,2915.8,3.51917546]
[1766065199385,0.601,2917.0,2915.8,0.08962427]
[1766065199931,4.02925789,2917.0,2915.8,0.08962427]
[1766065200079,5.1154,2916.8,2915.8,0.08962427]
[1766065200289,5.1154,2916.8,2915.6,0.08962427]
[1766065200290,5.1154,2916.6,2915.6,0.08962427]
[1766065200483,0.601,2917.3,2915.9,0.001]
[1766065200678,3.1385,2917.3,2915.9,0.001]
[1766065200879,5.2226,2917.1,2915.9,0.001]
[1766065201097,2.5375,2917.2,2916.0,0.08962427]
[1766065201315,5.2226,2917.5,2916.2,0.09062427]
[1766065201527,2.5375,2917.7,2916.4,0.08962427]
[1766065201729,2.5375,2917.7,2916.5,0.001]
[1766065202040,5.96486117,2917.7,2916.5,0.001]
[1766065202235,2.5375,2917.7,2916.6,0.35194772]
[1766065202434,0.002,2918.2,2917.0,0.001]
[1766065202733,3.42879721,2918.2,2916.6,0.95194772]
[1766065202908,2.5375,2917.5,2915.7,0.08962427]
[1766065203106,0.5540045,2918.1,2916.1,0.001]
[1766065203107,5.2226,2916.7,2916.1,0.001]
[1766065203315,0.46438023,2917.6,2915.5,0.001]
[1766065203505,5.2226,2917.0,2915.6,3.42975896]
[1766065203707,2.5375,2916.5,2915.4,0.001]
[1766065203929,2.5375,2916.2,2915.4,0.001]
[1766065204246,5.2226,2916.1,2915.4,0.001]
[1766065204538,7.7601,2916.6,2915.4,0.001]
[1766065204713,0.6,2916.5,2915.4,0.001]
[1766065204914,3.42829716,2916.9,2915.4,0.001]
[1766065205229,5.2226,2916.4,2915.4,0.001]
[1766065205427,7.80296253,2916.3,2915.4,0.001]
[1766065205604,2.5375,2916.1,2915.4,0.001]
[1766065205802,0.6,2916.4,2915.4,0.001]
[1766065205803,7.7601,2915.9,2915.4,0.001]
[1766065206040,5.2226,2916.4,2915.4,0.001]
[1766065206522,2.5375,2916.5,2915.4,0.001]
[1766065206708,2.5375,2916.3,2915.4,0.001]
[1766065207036,7.7601,2916.1,2915.4,0.001]
[1766065207451,0.6,2916.6,2915.4,0.001]
[1766065207739,2.5375,2916.5,2915.4,0.001]
[1766065207924,5.2226,2916.4,2915.4,0.001]
[1766065208133,11.18900523,2916.4,2915.4,0.001]
[1766065208441,7.7601,2916.4,2915.4,0.001]
[1766065208818,5.2226,2917.2,2915.7,0.001]
[1766065209013,7.7601,2916.9,2915.6,0.08962427]
[1766065209337,7.7601,2917.3,2916.1,0.08962427]
[1766065209539,5.8226,2917.3,2916.3,0.08962427]
[1766065209732,5.2226,2917.2,2916.3,0.08962427]
[1766065209912,5.2226,2916.8,2916.1,0.08962427]
[1766065210113,2.5375,2916.8,2916.1,0.08962427]
[1766065210311,5.2226,2917.0,2916.1,0.08962427]
[1766065210838,5.2226,2917.0,2915.8,0.68962427]
[1766065210839,5.2226,2917.0,2915.9,0.08962427]
[1766065211042,5.2218,2917.0,2915.9,0.08962427]
[1766065211342,5.2218,2917.0,2916.1,0.08962427]
[1766065211542,3.83277975,2917.8,2916.1,0.08962427]
[1766065211543,3.42725272,2917.8,2916.4,0.08962427]
[1766065211742,3.1375,2917.7,2916.7,0.08962427]
[1766065211943,2.5375,2917.7,2916.7,0.08962427]
[1766065212415,0.002,2918.2,2917.1,0.08962427]
[1766065212614,2.4202,2918.2,2917.1,0.08962427]
[1766065212942,2.4182,2918.1,2917.1,0.08962427]
[1766065214236,0.002,2918.2,2917.1,0.08962427]
[1766065214541,7.7,2917.9,2916.9,0.08962427]
[1766065216158,7.7,2917.9,2916.9,3.51791618]
[1766065216322,7.7,2917.9,2916.9,0.08962427]
[1766065216839,0.002,2918.2,2916.9,0.08962427]
[1766065216840,5.2818,2917.6,2916.9,0.08962427]
[1766065217216,0.002,2918.2,2917.5,0.08962427]
[1766065217646,5.2818,2918.6,2917.9,0.08962427]
[1766065217951,7.7,2918.8,2917.9,0.08962427]